fUSD/lending_fUSD_20260406
["ID","MTS","AMOUNT","RATE_DAILY","PERIOD"]
[419880482,1775461844733,-151.0,0.00015998,2]
[419880483,1775461844742,-151.0,0.00015998,2]
[419880484,1775461844752,-500.0,0.00015999,2]
[419880485,1775461844762,-500.0,0.00015999,2]
[419880486,1775461844772,-500.0,0.00015999,2]
[419880487,1775461844782,-500.0,0.00015999,2]
[419880488,1775461844791,-500.0,0.00015999,2]
[419880489,1775461844801,-500.0,0.00015999,2]
[419880490,1775461844810,-500.0,0.00015999,2]
[419880491,1775461844819,-500.0,0.00015999,2]
[419880492,1775461844829,-500.0,0.00015999,2]
[419880493,1775461844838,-150.0,0.00015999,2]
[419880494,1775461844848,-150.0,0.00015999,2]
[419880495,1775461844857,-150.0,0.00015999,2]
[419880496,1775461844867,-150.0,0.00015999,2]
[419880497,1775461844876,-150.0,0.00015999,2]
[419880498,1775461844886,-246.16072156,0.00015999,2]
[419880499,1775461844895,-155.27197355,0.00016,2]
[419880500,1775461844905,-207.58250816,0.00016,2]
[419880501,1775461844915,-151.68583305,0.00016,2]
[419880502,1775461844924,-154.21213872,0.00016,2]
[419880503,1775461844933,-308309.09339719,0.00016,2]
[419880524,1775461846475,-946.05260061,0.00016,2]
[419880525,1775461846673,-259.39905185,0.00012302,2]
[419880526,1775461847048,-673.3310658,0.00012302,2]
[419880527,1775461847059,-666.66,0.00012302,2]
[419880528,1775461847134,-562.39994,0.00012302,2]
[419880529,1775461847145,-345.0,0.00012302,2]
[419880530,1775461847214,-0.0093361,0.00012302,2]
[419880531,1775461847891,-491.65400287,0.00012302,2]
[419880532,1775461847903,-3673.12660338,0.00012302,2]
[419880533,1775461847913,-6021.0,0.00014511,2]
[419880534,1775461847922,-1075.09122512,0.0001568,2]
[419880535,1775461847932,-623.666065,0.00015998,2]
[419880536,1775461847942,-419.420367,0.00015998,2]
[419880537,1775461847951,-623.666065,0.00015998,2]
[419880538,1775461847961,-419.420367,0.00015998,2]
[419880539,1775461847971,-196.402077,0.00015998,2]
[419880540,1775461847980,-255.890544,0.00015998,2]
[419880541,1775461847990,-9493.06591648,0.00016,2]
[419880542,1775461848378,-2949.13468325,0.00016,2]
[419880544,1775462019618,-350.22732689,0.00011999,2]
[419880545,1775462019645,-327.0,0.00011999,2]
[419880546,1775462031662,822.77267311,0.00011507,2]
[419880588,1775462896156,-250.0,0.00010994,2]
[419880589,1775462896186,-150.0,0.00011,2]
[419880590,1775462896216,-1760.64283854,0.00011,2]
[419880591,1775462896244,-150.0,0.00011162,2]
[419880592,1775462896272,-600.0,0.00011167,2]
[419880593,1775462896300,-600.0,0.00011167,2]
[419880594,1775462896327,-3247.72728719,0.00011167,2]
[419880595,1775462896354,-313.41770673,0.00011343,2]
[419880596,1775462896381,-711.66732689,0.00011507,2]
[419880597,1775462896408,-32781.54484065,0.00011547,2]
[419880606,1775463032116,-636.65095903,0.000107,2]
[419880607,1775463032145,-591.86802884,0.000107,2]
[419880608,1775463032157,-856.08682692,0.000107,2]
[419880609,1775463032170,-14301.21777574,0.000107,2]
[419880610,1775463032220,-72.85780439,0.000107,2]
[419880611,1775463032233,-3031.8631592,0.000107,2]
[419880612,1775463032246,-262.02687277,0.000107,2]
[419880613,1775463032309,-878.17418521,0.000107,2]
[419880614,1775463032322,-9506.52285811,0.000107,2]
[419880615,1775463032332,-2853.86540628,0.00011547,2]
[419880619,1775463037882,-999.8506,0.00011547,2]
[419880620,1775463037894,-1000.51193,0.00011547,2]
[419880621,1775463037936,-615.3996137,0.00011547,2]
[419880622,1775463037948,-276.28760937,0.00011547,2]
[419880623,1775463037959,-250.0,0.00011576,2]
[419880624,1775463037968,-1566.32739063,0.00011604,2]
[419880625,1775463037980,-33.67260937,0.00011604,2]
[419880626,1775463037991,-279.87420685,0.00011615,2]
[419880627,1775463038003,-920.12579315,0.00011615,2]
[419880628,1775463038013,-1254.39,0.00011616,2]
[419880629,1775463038022,-250.0,0.00011673,2]
[419880630,1775463038032,-300.0,0.00011798,2]
[419880631,1775463038042,-300.0,0.00011798,2]
[419880632,1775463038051,-1200.0,0.00011799,2]
[419880633,1775463038061,-300.0,0.00011799,2]
[419880634,1775463038071,-2000.0,0.000118,4]
[419880635,1775463038081,-4000.0,0.000119,4]
[419880636,1775463038091,-150.0,0.00011908,2]
[419880637,1775463038100,-193.50949498,0.00011909,2]
[419880638,1775463038114,-5144.65126828,0.00011909,2]
[419880639,1775463038124,-600.0,0.00011909,2]
[419880640,1775463038134,-300.22915104,0.00011909,2]
[419880641,1775463038144,-319.64,0.00011981,2]
[419880642,1775463038154,-500.0,0.0001208,2]
[419880643,1775463038164,-262.3808947,0.0001208,2]
[419880644,1775463038173,-13920.41,0.0001208,2]
[419880645,1775463038182,-4227.25,0.0001208,2]
[419880646,1775463038192,-999.99,0.0001208,2]
[419880647,1775463038202,-150.99,0.0001208,2]
[419880648,1775463038212,-10674.89,0.0001208,2]
[419880649,1775463038222,-9999.99,0.0001208,2]
[419880650,1775463038232,-2500.0,0.00012293,2]
[419880651,1775463038242,-4171.28658585,0.00012293,2]
[419880652,1775463038251,-18217.91431128,0.00012293,2]
[419880653,1775463038262,-386.71698126,0.00012293,2]
[419880654,1775463038271,-2376.34986658,0.00012299,2]
[419880655,1775463038281,-10616.41513854,0.00012299,2]
[419880656,1775463038291,-193.60710548,0.00012383,2]
[419880657,1775463038301,-500.0,0.00012393,2]
[419880658,1775463038311,-500.0,0.00012393,2]
[419880659,1775463038321,-500.0,0.00012393,2]
[419880660,1775463038331,-500.0,0.00012393,2]
[419880661,1775463038340,-500.0,0.00012393,2]
[419880662,1775463038350,-500.0,0.00012393,2]
[419880663,1775463038360,-500.0,0.00012393,2]
[419880664,1775463038370,-200.0,0.00012393,2]
[419880665,1775463038380,-500.0,0.00012393,2]
[419880666,1775463038389,-500.0,0.00012393,2]
[419880667,1775463038399,-500.0,0.00012393,2]
[419880668,1775463038408,-500.0,0.00012393,2]
[419880669,1775463038418,-151.0,0.00012393,2]
[419880670,1775463038428,-151.0,0.00012393,2]
[419880671,1775463038438,-151.0,0.00012393,2]
[419880672,1775463038448,-151.0,0.00012393,2]
[419880673,1775463038458,-151.0,0.00012393,2]
[419880674,1775463038468,-151.0,0.00012393,2]
[419880675,1775463038477,-151.0,0.00012393,2]
[419880676,1775463038487,-151.0,0.00012393,2]
[419880677,1775463038497,-151.0,0.00012393,2]
[419880678,1775463038507,-151.0,0.00012393,2]
[419880679,1775463038516,-151.0,0.00012393,2]
[419880680,1775463038526,-151.0,0.00012393,2]
[419880681,1775463038535,-151.0,0.00012393,2]
[419880682,1775463038545,-1337.30371513,0.00012393,2]
[419880683,1775463038555,-227740.69373711,0.00012393,2]
[419880684,1775463038572,-1337.35,0.00012393,2]
[419880687,1775463040873,-151.0,0.00012162,2]
[419880689,1775463040884,-280.69598331,0.00012393,2]
[419880690,1775463040928,-993.71667762,0.00012393,2]
[419880691,1775463040940,-13820.33477592,0.00012393,2]
[419880692,1775463040952,-3242.36316023,0.00012393,2]
[419880693,1775463040963,-14438.60567993,0.00012393,2]
[419880694,1775463040992,-265.96,0.00012393,2]
[419880695,1775463041004,-1237880.27998588,0.00012393,2]
[419880696,1775463041014,-500.0,0.00012393,2]
[419880697,1775463041024,-3545.4126,0.00012399,2]
[419880698,1775463041033,-13476.04807752,0.00012399,2]
[419880699,1775463041043,-153.65864292,0.000124,2]
[419880700,1775463041053,-618.0,0.00012452,2]
[419880701,1775463041080,-500.0,0.00012473,2]
[419880702,1775463041090,-167.64405758,0.00012473,2]
[419880703,1775463041101,-500.0,0.00012473,2]
[419880704,1775463041111,-500.0,0.00012473,2]
[419880705,1775463041121,-245.86073687,0.00012473,2]
[419880706,1775463041132,-500.0,0.00012473,2]
[419880707,1775463041141,-375.51397884,0.00012473,2]
[419880708,1775463041151,-500.32253722,0.00012473,2]
[419880709,1775463041161,-500.0,0.00012473,2]
[419880710,1775463041171,-500.0,0.00012473,2]
[419880711,1775463041180,-500.0,0.00012473,2]
[419880712,1775463041190,-500.16623209,0.00012473,2]
[419880713,1775463041200,-160.39801811,0.00012473,2]
[419880714,1775463041210,-500.26271237,0.00012473,2]
[419880715,1775463041220,-1090.314,0.0001249,2]
[419880716,1775463041229,-151.0,0.00012497,2]
[419880717,1775463041239,-151.0,0.00012497,2]
[419880718,1775463041250,-500.0,0.00012499,2]
[419880719,1775463041259,-500.0,0.00012499,2]
[419880720,1775463041269,-500.0,0.00012499,2]
[419880721,1775463041279,-333.5002131,0.00012499,2]
[419880722,1775463041288,-500.0,0.00012499,2]
[419880723,1775463041298,-500.0,0.00012499,2]
[419880724,1775463041309,-500.0,0.00012499,2]
[419880726,1775463041319,-500.0,0.00012499,2]
[419880727,1775463041329,-500.0,0.00012499,2]
[419880728,1775463041338,-500.0,0.00012499,2]
[419880729,1775463041348,-500.0,0.00012499,2]
[419880730,1775463041358,-500.0,0.00012499,2]
[419880731,1775463041368,-500.0,0.00012499,2]
[419880732,1775463041379,-500.0,0.00012499,2]
[419880733,1775463041388,-500.0,0.00012499,2]
[419880734,1775463041399,-500.0,0.00012499,2]
[419880735,1775463041408,-500.0,0.00012499,2]
[419880736,1775463041418,-500.0,0.00012499,2]
[419880737,1775463041428,-500.0,0.00012499,2]
[419880738,1775463041437,-598.30972843,0.00012499,2]
[419880739,1775463041447,-500.0,0.00012499,2]
[419880740,1775463041456,-500.0,0.00012499,2]
[419880741,1775463041466,-500.0,0.00012499,2]
[419880742,1775463041476,-500.0,0.00012499,2]
[419880743,1775463041485,-500.0,0.00012499,2]
[419880744,1775463041495,-500.0,0.00012499,2]
[419880745,1775463041505,-500.0,0.00012499,2]
[419880746,1775463041514,-500.0,0.00012499,2]
[419880747,1775463041524,-500.0,0.00012499,2]
[419880748,1775463041533,-500.0,0.00012499,2]
[419880749,1775463041543,-500.0,0.00012499,2]
[419880750,1775463041552,-500.0,0.00012499,2]
[419880751,1775463041563,-500.0,0.00012499,2]
[419880752,1775463041573,-500.0,0.00012499,2]
[419880753,1775463041583,-500.0,0.00012499,2]
[419880754,1775463041592,-500.0,0.00012499,2]
[419880755,1775463041602,-500.0,0.00012499,2]
[419880756,1775463041611,-500.0,0.00012499,2]
[419880757,1775463041621,-500.0,0.00012499,2]
[419880758,1775463041631,-500.0,0.00012499,2]
[419880759,1775463041640,-500.0,0.00012499,2]
[419880760,1775463041650,-500.0,0.00012499,2]
[419880761,1775463041660,-400.0,0.00012499,2]
[419880762,1775463041669,-500.0,0.00012499,2]
[419880763,1775463041678,-500.0,0.00012499,2]
[419880764,1775463041688,-500.0,0.00012499,2]
[419880765,1775463041698,-500.0,0.00012499,2]
[419880766,1775463041707,-500.0,0.00012499,2]
[419880767,1775463041717,-500.0,0.00012499,2]
[419880768,1775463041727,-500.0,0.00012499,2]
[419880769,1775463041736,-500.0,0.00012499,2]
[419880770,1775463041746,-500.0,0.00012499,2]
[419880771,1775463041756,-500.0,0.00012499,2]
[419880772,1775463041765,-500.0,0.00012499,2]
[419880773,1775463041775,-500.0,0.00012499,2]
[419880774,1775463041785,-500.0,0.00012499,2]
[419880775,1775463041795,-500.0,0.00012499,2]
[419880776,1775463041805,-300.0,0.00012499,2]
[419880777,1775463041815,-500.0,0.00012499,2]
[419880778,1775463041825,-500.0,0.00012499,2]
[419880779,1775463041834,-500.0,0.00012499,2]
[419880780,1775463041844,-500.0,0.00012499,2]
[419880781,1775463041854,-500.0,0.00012499,2]
[419880782,1775463041863,-500.0,0.00012499,2]
[419880783,1775463041873,-479.80951973,0.00012499,2]
[419880784,1775463041883,-500.0,0.00012499,2]
[419880785,1775463041892,-500.0,0.00012499,2]
[419880786,1775463041902,-360.16766427,0.00012499,2]
[419880787,1775463041911,-500.0,0.00012499,2]
[419880788,1775463041920,-500.0,0.00012499,2]
[419880789,1775463041929,-500.0,0.00012499,2]
[419880790,1775463041939,-584.52734753,0.00012499,2]
[419880791,1775463041948,-500.0,0.00012499,2]
[419880792,1775463041958,-251.35172609,0.00012499,2]
[419880793,1775463041967,-500.0,0.00012499,2]
[419880794,1775463041978,-500.0,0.00012499,2]
[419880795,1775463041988,-500.0,0.00012499,2]
[419880796,1775463041998,-500.0,0.00012499,2]
[419880797,1775463042008,-500.0,0.00012499,2]
[419880798,1775463042018,-413.0635424,0.00012499,2]
[419880799,1775463042027,-500.0,0.00012499,2]
[419880800,1775463042037,-442.06595767,0.00012499,2]
[419880801,1775463042046,-150.0,0.000125,2]
[419880802,1775463042056,-2933.8,0.000125,2]
[419880803,1775463042065,-2933.8,0.000125,2]
[419880804,1775463042075,-2933.8,0.000125,2]
[419880805,1775463042084,-500.0,0.00012667,2]
[419880806,1775463042093,-5491.6129,0.00012692,2]
[419880807,1775463042103,-11722.1695,0.00012693,2]
[419880808,1775463042112,-1000.0,0.00012693,2]
[419880809,1775463042122,-18217.91431123,0.00012694,2]
[419880810,1775463042132,-10616.41513845,0.00012699,2]
[419880811,1775463042141,-150.0,0.000127,2]
[419880812,1775463042150,-250.0,0.00012702,2]
[419880813,1775463042160,-1680.0,0.00012777,2]
[419880814,1775463042169,-160.1,0.000128,2]
[419880815,1775463042178,-2376.34986658,0.00012813,2]
[419880816,1775463042188,-159.45,0.00012815,2]
[419880817,1775463042197,-6000.0,0.000129,4]
[419880818,1775463042207,-500.0,0.00012941,2]
[419880819,1775463042217,-200.0,0.00012941,2]
[419880820,1775463042227,-629.47078978,0.00012941,2]
[419880821,1775463042236,-420.0,0.00012954,2]
[419880822,1775463042247,-420.0,0.00012954,2]
[419880823,1775463042256,-302.0,0.00012955,2]
[419880824,1775463042265,-347.65580151,0.00012979,2]
[419880825,1775463042275,-255.0,0.0001298,2]
[419880827,1775463042653,-35306.8967171,0.00012999,2]
[419880828,1775463042665,-1165.98217065,0.00013,7]
[419880829,1775463042675,-1093.06753606,0.00013021,2]
[419880830,1775463042685,-1000.0,0.00013021,2]
[419880831,1775463042695,-1000.0,0.00013021,2]
[419880832,1775463042705,-1000.0,0.00013021,2]
[419880833,1775463042715,-1000.0,0.00013021,2]
[419880834,1775463042725,-1000.0,0.00013021,2]
[419880835,1775463042734,-152.0,0.00013047,3]
[419880836,1775463042744,-1600.0,0.00013054,2]
[419880838,1775463042754,-18217.91431123,0.00013095,2]
[419880839,1775463042764,-150.0,0.00013095,2]
[419880841,1775463042774,-10616.41513845,0.00013099,2]
[419880842,1775463042784,-507.0,0.000131,2]
[419880844,1775463042794,-152.0,0.00013165,4]
[419880845,1775463042803,-500.0,0.00013215,2]
[419880847,1775463042813,-152.0,0.00013282,5]
[419880849,1775463042822,-2376.34986658,0.00013328,2]
[419880850,1775463042832,-152.0,0.00013399,6]
[419880852,1775463042842,-3240.0,0.00013425,2]
[419880854,1775463042853,-500.0,0.00013488,2]
[419880855,1775463042862,-204.31990126,0.00013489,2]
[419880856,1775463042872,-18217.91431123,0.00013495,2]
[419880858,1775463042882,-10616.41513845,0.00013499,2]
[419880860,1775463042891,-152.0,0.00013517,7]
[419880861,1775463042901,-1500.0,0.00013568,2]
[419880862,1775463042911,-1500.0,0.00013568,2]
[419880863,1775463042920,-204.26825693,0.00013568,2]
[419880864,1775463042930,-1544.24672784,0.00013568,2]
[419880865,1775463042940,-1011.33728453,0.00013568,2]
[419880866,1775463042950,-150.0,0.00013608,2]
[419880867,1775463042960,-189.404447,0.00013622,2]
[419880868,1775463042969,-152.0,0.00013634,8]
[419880869,1775463042979,-500.0,0.00013698,2]
[419880870,1775463042989,-500.0,0.00013698,2]
[419880871,1775463042999,-500.0,0.00013698,2]
[419880872,1775463043009,-500.0,0.00013698,2]
[419880873,1775463043019,-500.0,0.00013698,2]
[419880874,1775463043029,-500.0,0.00013698,2]
[419880875,1775463043039,-500.0,0.00013698,2]
[419880876,1775463043049,-500.0,0.00013698,2]
[419880877,1775463043060,-500.0,0.00013698,2]
[419880878,1775463043070,-500.0,0.00013698,2]
[419880879,1775463043080,-500.0,0.00013698,2]
[419880880,1775463043090,-500.0,0.00013698,2]
[419880881,1775463043100,-500.0,0.00013698,2]
[419880882,1775463043110,-500.0,0.00013698,2]
[419880883,1775463043120,-500.0,0.00013698,2]
[419880884,1775463043129,-500.0,0.00013698,2]
[419880885,1775463043139,-500.0,0.00013698,2]
[419880886,1775463043150,-500.0,0.00013698,2]
[419880887,1775463043160,-500.0,0.00013698,2]
[419880888,1775463043170,-500.0,0.00013698,2]
[419880889,1775463043180,-500.0,0.00013698,2]
[419880890,1775463043190,-500.0,0.00013698,2]
[419880891,1775463043200,-500.0,0.00013698,2]
[419880892,1775463043209,-500.0,0.00013698,2]
[419880893,1775463043219,-500.0,0.00013698,2]
[419880894,1775463043229,-500.0,0.00013698,2]
[419880895,1775463043240,-500.0,0.00013698,2]
[419880896,1775463043251,-500.0,0.00013698,2]
[419880897,1775463043262,-500.0,0.00013698,2]
[419880898,1775463043272,-500.0,0.00013698,2]
[419880899,1775463043282,-500.0,0.00013698,2]
[419880900,1775463043292,-500.0,0.00013698,2]
[419880901,1775463043303,-500.0,0.00013698,2]
[419880902,1775463043313,-500.0,0.00013698,2]
[419880903,1775463043323,-500.0,0.00013698,2]
[419880904,1775463043334,-500.0,0.00013698,2]
[419880905,1775463043345,-500.0,0.00013698,2]
[419880906,1775463043356,-500.0,0.00013698,2]
[419880907,1775463043366,-500.0,0.00013698,2]
[419880908,1775463043376,-500.0,0.00013698,2]
[419880909,1775463043385,-500.0,0.00013698,2]
[419880910,1775463043395,-500.0,0.00013698,2]
[419880911,1775463043405,-500.0,0.00013698,2]
[419880912,1775463043415,-500.0,0.00013698,2]
[419880913,1775463043426,-500.0,0.00013698,2]
[419880914,1775463043436,-500.0,0.00013698,2]
[419880915,1775463043446,-500.0,0.00013698,2]
[419880916,1775463043456,-500.0,0.00013698,2]
[419880917,1775463043466,-500.0,0.00013698,2]
[419880918,1775463043476,-500.0,0.00013698,2]
[419880919,1775463043487,-500.0,0.00013698,2]
[419880920,1775463043496,-500.0,0.00013698,2]
[419880921,1775463043507,-500.0,0.00013698,2]
[419880922,1775463043518,-500.0,0.00013698,2]
[419880923,1775463043528,-500.0,0.00013698,2]
[419880925,1775463043538,-500.0,0.00013698,2]
[419880926,1775463043548,-500.0,0.00013698,2]
[419880929,1775463043559,-500.0,0.00013698,2]
[419880930,1775463043570,-500.0,0.00013698,2]
[419880931,1775463043580,-500.0,0.00013698,2]
[419880932,1775463043591,-500.0,0.00013698,2]
[419880933,1775463043600,-500.0,0.00013698,2]
[419880934,1775463043611,-500.0,0.00013698,2]
[419880935,1775463043622,-500.0,0.00013698,2]
[419880936,1775463043632,-500.0,0.00013698,2]
[419880937,1775463043642,-500.0,0.00013698,2]
[419880939,1775463043652,-500.0,0.00013698,2]
[419880940,1775463043662,-500.0,0.00013698,2]
[419880941,1775463043672,-508.61892667,0.00013698,2]
[419880943,1775463043682,-500.0,0.00013698,2]
[419880945,1775463043691,-500.0,0.00013698,2]
[419880946,1775463043701,-500.0,0.00013698,2]
[419880947,1775463043711,-500.0,0.00013698,2]
[419880948,1775463043721,-500.0,0.00013698,2]
[419880949,1775463043731,-500.0,0.00013698,2]
[419880950,1775463043741,-500.0,0.00013698,2]
[419880951,1775463043752,-500.0,0.00013698,2]
[419880952,1775463043762,-500.0,0.00013698,2]
[419880953,1775463043773,-500.0,0.00013698,2]
[419880954,1775463043783,-500.0,0.00013698,2]
[419880955,1775463043793,-500.0,0.00013698,2]
[419880956,1775463043803,-500.0,0.00013698,2]
[419880957,1775463043813,-500.0,0.00013698,2]
[419880958,1775463043823,-500.0,0.00013698,2]
[419880959,1775463043833,-500.0,0.00013698,2]
[419880960,1775463043843,-500.0,0.00013698,2]
[419880961,1775463043853,-500.0,0.00013698,2]
[419880962,1775463043863,-500.0,0.00013698,2]
[419880963,1775463043872,-500.0,0.00013698,2]
[419880964,1775463043882,-500.0,0.00013698,2]
[419880965,1775463043893,-500.0,0.00013698,2]
[419880966,1775463043903,-500.0,0.00013698,2]
[419880967,1775463043913,-500.0,0.00013698,2]
[419880968,1775463043923,-500.0,0.00013698,2]
[419880969,1775463043933,-500.0,0.00013698,2]
[419880970,1775463043944,-500.0,0.00013698,2]
[419880971,1775463043953,-500.0,0.00013698,2]
[419880972,1775463043963,-500.0,0.00013698,2]
[419880973,1775463043973,-500.0,0.00013698,2]
[419880974,1775463043983,-500.0,0.00013698,2]
[419880975,1775463043993,-500.0,0.00013698,2]
[419880976,1775463044003,-500.0,0.00013698,2]
[419880977,1775463044013,-500.0,0.00013698,2]
[419880978,1775463044023,-500.0,0.00013698,2]
[419880979,1775463044033,-500.0,0.00013698,2]
[419880980,1775463044043,-500.0,0.00013698,2]
[419880981,1775463044052,-500.0,0.00013698,2]
[419880982,1775463044063,-500.0,0.00013698,2]
[419880983,1775463044073,-500.0,0.00013698,2]
[419880984,1775463044083,-500.0,0.00013698,2]
[419880985,1775463044093,-500.0,0.00013698,2]
[419880986,1775463044103,-500.0,0.00013698,2]
[419880987,1775463044113,-500.0,0.00013698,2]
[419880988,1775463044123,-500.0,0.00013698,2]
[419880989,1775463044133,-500.0,0.00013698,2]
[419880990,1775463044143,-514.47518034,0.00013698,2]
[419880991,1775463044153,-500.0,0.00013698,2]
[419880992,1775463044163,-500.0,0.00013698,2]
[419880993,1775463044173,-500.0,0.00013698,2]
[419880994,1775463044183,-500.0,0.00013698,2]
[419880995,1775463044193,-500.0,0.00013698,2]
[419880996,1775463044202,-500.0,0.00013698,2]
[419880997,1775463044212,-500.0,0.00013698,2]
[419880998,1775463044222,-500.0,0.00013698,2]
[419880999,1775463044232,-500.0,0.00013698,2]
[419881000,1775463044242,-500.0,0.00013698,2]
[419881001,1775463044252,-500.0,0.00013698,2]
[419881002,1775463044261,-500.0,0.00013698,2]
[419881003,1775463044271,-500.0,0.00013698,2]
[419881004,1775463044281,-500.0,0.00013698,2]
[419881005,1775463044291,-500.0,0.00013698,2]
[419881006,1775463044301,-500.0,0.00013698,2]
[419881007,1775463044313,-500.0,0.00013698,2]
[419881008,1775463044323,-500.0,0.00013698,2]
[419881009,1775463044333,-500.0,0.00013698,2]
[419881010,1775463044343,-500.0,0.00013698,2]
[419881011,1775463044353,-500.0,0.00013698,2]
[419881012,1775463044363,-500.0,0.00013698,2]
[419881013,1775463044373,-500.0,0.00013698,2]
[419881014,1775463044383,-500.0,0.00013698,2]
[419881015,1775463044393,-500.0,0.00013698,2]
[419881016,1775463044403,-500.0,0.00013698,2]
[419881017,1775463044413,-500.0,0.00013698,2]
[419881018,1775463044423,-500.0,0.00013698,2]
[419881019,1775463044433,-500.0,0.00013698,2]
[419881020,1775463044443,-500.0,0.00013698,2]
[419881021,1775463044453,-500.0,0.00013698,2]
[419881022,1775463044463,-502.76097898,0.00013698,2]
[419881023,1775463044473,-500.0,0.00013698,2]
[419881024,1775463044483,-507.01970036,0.00013698,2]
[419881025,1775463044492,-500.0,0.00013698,2]
[419881026,1775463044502,-256.00425953,0.00013698,2]
[419881027,1775463044513,-150.0,0.00013699,2]
[419881028,1775463044523,-150.0,0.00013699,2]
[419881029,1775463044533,-150.0,0.00013699,2]
[419881030,1775463044542,-1460.36,0.00013699,2]
[419881031,1775463044552,-166.66,0.00013699,2]
[419881032,1775463044562,-200.0,0.00013699,2]
[419881033,1775463044572,-501.6002768,0.000137,2]
[419881034,1775463044582,-500.0,0.000137,2]
[419881035,1775463044591,-500.0,0.000137,2]
[419881036,1775463044601,-500.0,0.000137,2]
[419881037,1775463044610,-501.68959435,0.000137,2]
[419881038,1775463044619,-429.76417009,0.000137,2]
[419881039,1775463044629,-501.766461,0.000137,2]
[419881040,1775463044638,-501.91295738,0.000137,2]
[419881041,1775463044648,-281.4,0.00013714,2]
[419881042,1775463044657,-281.4,0.00013714,2]
[419881043,1775463044667,-281.4,0.00013714,2]
[419881044,1775463044678,-281.4,0.00013714,2]
[419881045,1775463044687,-281.4,0.00013714,2]
[419881046,1775463044696,-281.4,0.00013714,2]
[419881047,1775463044706,-281.4,0.00013714,2]
[419881048,1775463044715,-281.4,0.00013714,2]
[419881049,1775463044725,-281.4,0.00013714,2]
[419881050,1775463044735,-152.0,0.00013751,9]
[419881051,1775463044744,-500.0,0.00013762,2]
[419881052,1775463044753,-427.792046,0.000138,2]
[419881053,1775463044763,-3000.0,0.00013808,2]
[419881054,1775463044773,-166.66,0.00013836,2]
[419881055,1775463044782,-2376.34986658,0.00013842,2]
[419881056,1775463044792,-152.0,0.00013869,10]
[419881057,1775463044801,-18217.91431123,0.00013896,2]
[419881058,1775463044812,-10616.41513845,0.00013899,2]
[419881059,1775463044821,-8000.0,0.000139,5]
[419881060,1775463044831,-150.0,0.00013973,2]
[419881061,1775463044840,-150.0,0.00013973,2]
[419881062,1775463044850,-150.0,0.00013973,2]
[419881063,1775463044861,-166.66,0.00013973,2]
[419881064,1775463044870,-152.0,0.00013986,11]
[419881065,1775463044879,-167.6392,0.00014,2]
[419881066,1775463044889,-855.85192254,0.00014006,2]
[419881067,1775463044900,-244.15417,0.00014014,7]
[419881068,1775463044910,-160.0,0.00014014,7]
[419881069,1775463044920,-266.355969,0.00014014,7]
[419881070,1775463044929,-372.711939,0.00014014,7]
[419881071,1775463044939,-500.0,0.00014036,2]
[419881072,1775463044951,-2351.0,0.00014055,2]
[419881073,1775463044960,-1500.0,0.00014082,2]
[419881074,1775463044970,-152.0,0.00014103,12]